[Event "25th Zadar Open 2018"]
[Site "Zadar"]
[Date "2018.12.21"]
[Round "8.21"]
[White "Sahil, Tickoo"]
[Black "Sinanovic, Muhamed"]
[Result "1/2-1/2"]
[ECO "A47"]
[WhiteElo "2224"]
[BlackElo "2325"]
[Annotator "NA"]
[PlyCount "96"]
[EventDate "2018.12.15"]
[EventType "swiss"]
[EventCountry "CRO"]
[SourceTitle "playchess.com"]
[Source "ChessBase"]
[SourceQuality "1"]
[TimeControl "40/5400+30:1800+30"]

1. d4 {[%emt 0:01:30]} e6 {[%emt 0:00:30]} 2. Nf3 {[%emt 0:00:30]} Nf6 {[%emt 0:00:00]} 3. Bf4 {[%emt 0:00:30]} b6 {[%emt 0:00:00]} 4. e3 {[%emt 0:00:30]} Bb7 {[%emt 0:00:30]} 5. Nbd2 {[%emt 0:00:30]} g6 {[%emt 0:04:30] A47: 1 d4 Nf6 2 Nf3 b6: Torre, London and Colle Systems} (5... Bd6 6. Bg3 O-O 7. Bd3 h6 8. c3 Bxg3 9. hxg3 d6 10. Qe2 Nbd7 11. e4 e5 12. dxe5 dxe5 13. O-O-O {1-0 (27) Le,Q (2737)-Salgado Lopez,I (2644) Riadh 2017}) 6. Bd3 {[%emt 0:00:30]} Bg7 {[%emt 0:00:30]} 7. c3 {[%emt 0:02:30]} O-O {[%emt 0:00:30]} 8. Qe2 {[%emt 0:03:30]} d6 {[%emt 0:06:30]} 9. e4 $146 {[%emt 0:05:30]} ({Predecessor:} 9. h4 Nbd7 10. O-O-O Qe7 11. h5 e5 12. hxg6 hxg6 13. Bg5 {0-1 (30) Khandhar,K (1981)-Vo,T (2399) Johor 2017}) 9... Nc6 {[%emt 0:07:30]} 10. O-O {[%emt 0:19:30]} Ne7 {[%emt 0:10:30]} 11. h3 {[%emt 0:04:30]} c5 {[%emt 0:12:30]} 12. dxc5 {[%emt 0:03:30]} bxc5 {[%emt 0:03:30]} 13. Qe3 {[%emt 0:12:30]} Rc8 {[%emt 0:04:30]} 14. Rad1 {[%emt 0:06:30]} d5 {[%emt 0:06:30]} 15. e5 {[%emt 0:00:30]} Nd7 {[%emt 0:00:00]} 16. Bh6 {[%emt 0:00:30]} Qb6 {[%emt 0:02:00]} 17. Rb1 {[%emt 0:10:30]} Ba6 {[%emt 0:00:30]} 18. Bxg7 {[%emt 0:00:30]} Kxg7 {[%emt 0:00:00]} 19. Rfe1 {[%emt 0:02:30]} Bxd3 {[%emt 0:00:00]} 20. Qxd3 {[%emt 0:00:30]} a5 {[%emt 0:01:30]} 21. Nf1 {[%emt 0:02:30]} c4 {[%emt 0:02:30]} 22. Qd2 {[%emt 0:00:30]} a4 {[%emt 0:02:30]} 23. Ne3 {[%emt 0:01:30]} Rc5 {[%emt 0:02:30]} 24. Ng4 {[%emt 0:02:29]} Ng8 {[%emt 0:00:30]} 25. h4 {[%emt 0:01:02]} h5 {[%emt 0:00:30]} 26. Ngh2 {[%emt 0:01:26]} Nh6 {[%emt 0:00:30]} 27. Nd4 {[%emt 0:00:16]} Qd8 {[%emt 0:04:30]} 28. Qf4 {[%emt 0:02:16]} Nb8 {[%emt 0:02:30]} (28... Rc7 $17) 29. Nhf3 {[%emt 0:03:49]} Nc6 {[%emt 0:00:30]} 30. Rbd1 {[%emt 0:02:26]} Nxd4 {[%emt 0:00:30]} 31. Nxd4 {[%emt 0:00:10]} Qe7 $15 {[%emt 0:02:30]} 32. a3 {[%emt 0:00:56]} Rb8 {[%emt 0:01:30]} 33. Rd2 {[%emt 0:00:41]} Rb6 {[%emt 0:00:30]} 34. Ree2 {[%emt 0:01:18]} Rc8 {[%emt 0:01:30]} 35. f3 {[%emt 0:01:07]} Rh8 {[%emt 0:03:17]} 36. g3 {[%emt 0:00:57]} Nf5 {[%emt 0:00:40]} 37. Nxf5+ {[%emt 0:02:17]} gxf5 {[%emt 0:03:02]} 38. Qg5+ {[%emt 0:04:48]} Qxg5 {[%emt 0:01:14]} 39. hxg5 {[%emt 0:00:01]} h4 {[%emt 0:06:57]} 40. Rh2 {[%emt 0:00:00]} hxg3 {[%emt 0:00:00]} 41. Rxh8 {[%emt 0:01:01]} Kxh8 {[%emt 0:00:20]} 42. Kg2 {[%emt 0:06:30]} Kg7 {[%emt 0:01:30]} 43. Kxg3 {[%emt 0:01:30]} Rb8 {[%emt 0:00:30]} 44. f4 {[%emt 0:06:44]} Rh8 {[%emt 0:01:30]} 45. Rh2 {[%emt 0:00:26]} Rxh2 {[%emt 0:01:30]} 46. Kxh2 {[%emt 0:00:02]} Kg6 {[%emt 0:00:00]} 47. Kg3 {[%emt 0:00:07]} Kh5 {[%emt 0:00:00]} 48. Kh3 {[%emt 0:00:11]} Kg6 {[%emt 0:00:00]} 1/2-1/2

[Event "25th Zadar Open 2018"]
[Site "Zadar"]
[Date "2018.12.21"]
[Round "8.22"]
[White "Bosnjak, Petar"]
[Black "Bratovic, Blaz"]
[Result "1/2-1/2"]
[ECO "B33"]
[WhiteElo "2255"]
[BlackElo "2307"]
[Annotator "NA"]
[PlyCount "95"]
[EventDate "2018.12.15"]
[EventType "swiss"]
[EventCountry "CRO"]
[SourceTitle "playchess.com"]
[Source "ChessBase"]
[SourceQuality "1"]
[TimeControl "40/5400+30:1800+30"]

1. e4 {[%emt 0:00:30]} c5 {[%emt 0:01:30]} 2. Nc3 {[%emt 0:00:00]} Nc6 {[%emt 0:00:00]} 3. Nf3 {[%emt 0:00:00]} Nf6 {[%emt 0:00:00]} 4. d4 {[%emt 0:00:30]} cxd4 {[%emt 0:00:00]} 5. Nxd4 {[%emt 0:00:30]} e5 {[%emt 0:00:00]} 6. Ndb5 {[%emt 0:00:00]} d6 {[%emt 0:00:30]} 7. Bg5 {[%emt 0:04:00]} a6 {[%emt 0:00:30]} 8. Na3 {[%emt 0:00:00]} b5 {[%emt 0:00:30]} 9. Nd5 {[%emt 0:00:00]} Be7 {[%emt 0:00:00]} 10. Bxf6 {[%emt 0:00:30]} Bxf6 {[%emt 0:00:00]} 11. c4 {[%emt 0:00:00]} b4 {[%emt 0:00:00]} 12. Nc2 {[%emt 0:00:00]} a5 {[%emt 0:00:00]} 13. g3 {[%emt 0:00:30] B33: Sicilian: Pelikan and Sveshnikov Variations} O-O {[%emt 0:00:30]} 14. h4 {[%emt 0:00:30]} a4 {[%emt 0:01:30] [#]} 15. Qd3 $146 {[%emt 0:05:30]} ({Predecessor:} 15. Bg2 Be6 16. O-O Bxd5 17. cxd5 Nd4 18. Rc1 Qb6 19. Nxd4 Qxd4 {½-½ (42) Svetushkin,D (2580)-Fressinet,L (2710) Linares 2015}) 15... Qa5 {[%emt 0:07:30]} 16. Qd2 {[%emt 0:06:30]} Bd8 {[%emt 0:02:30]} 17. Bg2 {[%emt 0:10:30]} Qc5 {[%emt 0:05:30]} 18. b3 {[%emt 0:08:30]} axb3 {[%emt 0:13:30]} 19. axb3 {[%emt 0:00:30]} Rxa1+ {[%emt 0:00:00]} 20. Nxa1 {[%emt 0:00:30]} Nd4 {[%emt 0:03:00]} 21. O-O {[%emt 0:01:30]} Ba5 {[%emt 0:02:30]} 22. Qd3 {[%emt 0:09:30]} Be6 {[%emt 0:01:30]} 23. Ne3 {[%emt 0:04:30]} Bb6 {[%emt 0:00:30]} 24. Nac2 {[%emt 0:03:30]} Nxc2 {[%emt 0:07:30]} 25. Qxc2 {[%emt 0:12:30]} Ra8 {[%emt 0:00:30]} 26. Nf5 {[%emt 0:05:30]} Qc7 {[%emt 0:03:30]} 27. Qd2 {[%emt 0:07:39]} Bc5 {[%emt 0:02:30]} 28. h5 {[%emt 0:01:42]} f6 {[%emt 0:03:30]} 29. Bh3 {[%emt 0:01:35]} Bf7 {[%emt 0:01:30]} 30. h6 {[%emt 0:00:14]} g6 {[%emt 0:00:30]} 31. Ne3 {[%emt 0:00:33]} Qb7 {[%emt 0:02:30]} 32. Qe2 {[%emt 0:02:35]} Qe7 $11 {[%emt 0:14:30]} (32... Ra3 $5 {[%cal Ra3b3]} 33. Qc2 Qe7 $15) 33. Qf3 {[%emt 0:04:19]} Rf8 {[%emt 0:00:00]} 34. Ra1 {[%emt 0:03:07]} Be6 {[%emt 0:00:00]} 35. Bxe6+ {[%emt 0:01:03]} Qxe6 {[%emt 0:00:30]} 36. Kg2 {[%emt 0:05:53]} f5 {[%emt 0:08:30]} 37. Ra2 {[%emt 0:01:35]} Bxe3 {[%emt 0:01:30]} 38. Qxe3 {[%emt 0:00:07]} f4 {[%emt 0:00:00]} 39. Qa7 {[%emt 0:00:56]} Qf6 {[%emt 0:00:00]} 40. Qg7+ {[%emt 0:00:00]} Qxg7 {[%emt 0:00:00]} 41. hxg7 {[%emt 0:02:12]} Kxg7 {[%emt 0:02:00]} 42. Ra6 {[%emt 0:06:30]} fxg3 {[%emt 0:00:30]} 43. fxg3 {[%emt 0:00:30]} Rf6 {[%emt 0:00:30]} 44. Ra7+ {[%emt 0:00:30]} Rf7 {[%emt 0:00:30]} 45. Ra6 {[%emt 0:00:30]} Rf6 {[%emt 0:00:30]} 46. Ra7+ {[%emt 0:00:30]} Rf7 {[%emt 0:00:30]} 47. Ra6 {[%emt 0:00:00]} Rf6 {[%emt 0:00:00]} 48. Ra7+ {[%emt 0:00:00]} 1/2-1/2

[Event "25th Zadar Open 2018"]
[Site "Zadar"]
[Date "2018.12.21"]
[Round "8.23"]
[White "Ojas Kulkarni"]
[Black "Chan, Kim Yew"]
[Result "1/2-1/2"]
[ECO "A36"]
[WhiteElo "2282"]
[BlackElo "2175"]
[Annotator "NA"]
[PlyCount "82"]
[EventDate "2018.12.15"]
[EventType "swiss"]
[EventCountry "CRO"]
[SourceTitle "playchess.com"]
[Source "ChessBase"]
[SourceQuality "1"]
[TimeControl "40/5400+30:1800+30"]

1. c4 {[%emt 0:00:30]} c5 {[%emt 0:00:30]} 2. Nc3 {[%emt 0:02:30]} g6 {[%emt 0:00:00]} 3. g3 {[%emt 0:00:30]} Bg7 {[%emt 0:00:00]} 4. Bg2 {[%emt 0:00:30]} Nc6 {[%emt 0:00:00]} 5. d3 {[%emt 0:02:30]} e6 {[%emt 0:01:00]} 6. h4 {[%emt 0:00:30]} h6 {[%emt 0:02:30]} 7. Nh3 {[%emt 0:00:30]} Nge7 {[%emt 0:00:00]} 8. Nf4 {[%emt 0:00:30]} b6 {[%emt 0:01:00]} 9. Bd2 {[%emt 0:09:30]} Bb7 {[%emt 0:00:30]} 10. a3 {[%emt 0:00:00]} d6 $11 {[%emt 0:04:30]} 11. b4 {[%emt 0:06:00]} Qd7 {[%emt 0:00:00]} 12. Qa4 {[%emt 0:04:30]} O-O {[%emt 0:07:00]} 13. Rb1 {[%emt 0:01:30]} Rfd8 {[%emt 0:02:30]} 14. O-O {[%emt 0:02:30]} Nd4 {[%emt 0:21:30]} 15. Qxd7 {[%emt 0:02:30]} Rxd7 {[%emt 0:00:30]} 16. Bxb7 {[%emt 0:10:30]} Rxb7 {[%emt 0:00:30]} 17. bxc5 {[%emt 0:09:30]} dxc5 {[%emt 0:00:30]} 18. Rfc1 {[%emt 0:00:00]} Rd8 {[%emt 0:07:30]} 19. Kf1 {[%emt 0:01:00]} Nec6 {[%emt 0:02:30]} 20. Ng2 {[%emt 0:02:30]} Ne5 {[%emt 0:09:30]} 21. Ne3 {[%emt 0:00:30]} Rdd7 {[%emt 0:05:30]} 22. Nb5 {[%emt 0:04:30]} Nec6 {[%emt 0:06:30]} 23. Nc2 {[%emt 0:02:30]} Nf5 {[%emt 0:00:30]} 24. Ne3 {[%emt 0:05:30]} Nd6 {[%emt 0:01:30]} 25. Bc3 {[%emt 0:04:30]} h5 {[%emt 0:01:30]} 26. Bxg7 {[%emt 0:05:30]} Kxg7 {[%emt 0:00:00]} 27. f3 {[%emt 0:01:30]} Ne5 {[%emt 0:03:00]} 28. Kf2 {[%emt 0:00:30]} Nf5 {[%emt 0:05:49]} 29. Rc2 {[%emt 0:02:29]} Kf6 {[%emt 0:01:59]} 30. Rcb2 {[%emt 0:01:06]} Nxe3 {[%emt 0:00:31]} 31. Kxe3 {[%emt 0:00:07]} Ke7 {[%emt 0:00:17]} 32. Nc3 {[%emt 0:02:50]} Rb8 {[%emt 0:01:38]} 33. Ne4 {[%emt 0:02:54]} Rbd8 {[%emt 0:00:33]} 34. Rh1 {[%emt 0:01:51]} Rd4 {[%emt 0:02:59]} 35. Rbb1 {[%emt 0:01:16]} f5 {[%emt 0:03:06]} 36. Ng5 {[%emt 0:00:40]} Nc6 {[%emt 0:00:36]} 37. Rbg1 {[%emt 0:01:47]} Kf6 {[%emt 0:02:44]} 38. Nh7+ {[%emt 0:02:24]} Kg7 {[%emt 0:00:03]} 39. Ng5 {[%emt 0:00:10]} Kf6 {[%emt 0:00:06]} 40. Nh7+ {[%emt 0:00:00]} Kg7 {[%emt 0:00:00]} 41. Ng5 {[%emt 0:00:56]} Kf6 {[%emt 0:00:39]} 1/2-1/2

[Event "25th Zadar Open 2018"]
[Site "Zadar"]
[Date "2018.12.21"]
[Round "8.24"]
[White "Samani, Yamac"]
[Black "Jeet, Jain"]
[Result "0-1"]
[ECO "A48"]
[WhiteElo "2267"]
[BlackElo "2212"]
[Annotator "NA"]
[PlyCount "92"]
[EventDate "2018.12.15"]
[EventType "swiss"]
[EventCountry "CRO"]
[SourceTitle "playchess.com"]
[Source "ChessBase"]
[SourceQuality "1"]
[TimeControl "40/5400+30:1800+30"]

1. d4 {[%emt 0:00:30]} Nf6 {[%emt 0:00:30]} 2. Nf3 {[%emt 0:00:00]} c5 {[%emt 0:00:30]} 3. e3 {[%emt 0:01:00]} g6 {[%emt 0:00:30]} 4. Bd3 {[%emt 0:00:30]} Bg7 {[%emt 0:00:30]} 5. O-O {[%emt 0:00:30]} b6 {[%emt 0:01:30]} 6. Nbd2 {[%emt 0:01:30]} O-O {[%emt 0:00:30]} 7. c3 {[%emt 0:00:30] A48: 1 d4 Nf6 2 Nf3 g6: Torre, London and Colle Systems} (7. dxc5 bxc5 8. e4 Nc6 9. Re1 Qc7 10. h3 d6 11. Nc4 Nd7 12. c3 Bb7 13. Bf4 Rfd8 14. Qe2 Nb6 {1-0 (48) Zufic,M (2395)-Bozinovic,B (2174) Pula 2017}) 7... d6 {[%emt 0:01:30]} 8. Re1 {[%emt 0:02:30]} Qc7 {[%emt 0:01:30]} 9. e4 {[%emt 0:03:30]} e5 $146 {[%emt 0:02:30]} ({Predecessor:} 9... Bb7 10. Nf1 c4 11. Bc2 b5 12. a4 a6 13. Bf4 Nbd7 14. e5 dxe5 15. Nxe5 Nd5 16. Bg3 Nxe5 17. Bxe5 Bxe5 18. Rxe5 {1-0 (69) Friedel,M (2133)-Benend,A (2213) Germany 2009}) 10. dxe5 {[%emt 0:02:30]} dxe5 {[%emt 0:00:30]} 11. Qc2 {[%emt 0:02:30]} h6 {[%emt 0:03:30]} 12. a4 {[%emt 0:00:30]} Nc6 {[%emt 0:01:30]} 13. Nc4 {[%emt 0:04:30]} Rd8 {[%emt 0:10:30]} 14. Ne3 {[%emt 0:16:30]} Bb7 {[%emt 0:02:30]} 15. Nd2 {[%emt 0:02:30]} a6 {[%emt 0:04:30]} 16. f3 {[%emt 0:05:30]} Bc8 {[%emt 0:06:30]} 17. Bc4 {[%emt 0:03:30]} Na5 {[%emt 0:01:30]} 18. Nd5 {[%emt 0:02:30]} Nxd5 {[%emt 0:00:30]} 19. Bxd5 {[%emt 0:00:30]} Bb7 {[%emt 0:01:30]} 20. Bxb7 {[%emt 0:01:30]} Qxb7 {[%emt 0:00:30]} 21. Nf1 {[%emt 0:01:30]} c4 {[%emt 0:08:30]} 22. Ne3 {[%emt 0:02:30]} Nb3 {[%emt 0:02:30]} 23. Rb1 {[%emt 0:11:30]} b5 {[%emt 0:04:30]} 24. Nd5 {[%emt 0:02:30]} Nc5 {[%emt 0:00:30]} 25. axb5 {[%emt 0:03:30]} axb5 {[%emt 0:00:30]} 26. Be3 {[%emt 0:00:30]} Nd3 {[%emt 0:00:30]} 27. Red1 {[%emt 0:00:30]} Rxd5 {[%emt 0:12:30]} 28. exd5 {[%emt 0:00:00]} Qxd5 {[%emt 0:00:30]} 29. Ra1 {[%emt 0:03:00]} Rd8 {[%emt 0:02:30]} 30. Qd2 {[%emt 0:02:30]} h5 {[%emt 0:03:30]} 31. h3 $11 {[%emt 0:01:30]} e4 {[%emt 0:01:30]} 32. fxe4 {[%emt 0:01:30]} Qxe4 {[%emt 0:00:30]} 33. Bh6 {[%emt 0:06:27]} Be5 {[%emt 0:02:30]} 34. Rf1 {[%emt 0:02:59]} Bd6 {[%emt 0:11:15]} 35. Qg5 {[%emt 0:01:12]} Be7 {[%emt 0:00:37]} 36. Qxb5 {[%emt 0:01:44]} Bc5+ {[%emt 0:00:25]} 37. Kh1 {[%emt 0:00:15]} Nf2+ {[%emt 0:01:48]} 38. Rxf2 {[%emt 0:00:56]} Bxf2 {[%emt 0:00:07]} 39. Qa6 {[%emt 0:08:48]} Qe2 {[%emt 0:06:22]} 40. Qa4 {[%emt 0:00:00]} Rd3 {[%emt 0:00:00]} 41. Kh2 {[%emt 0:08:09]} Kh7 {[%emt 0:12:26]} 42. Bf8 {[%emt 0:01:30]} Rxh3+ {[%emt 0:00:30]} 43. gxh3 {[%emt 0:00:30]} Be3+ {[%emt 0:00:30]} 44. Kh1 {[%emt 0:00:00]} Qf3+ {[%emt 0:00:00]} 45. Kh2 {[%emt 0:00:00]} Qf2+ {[%emt 0:00:00]} 46. Kh1 {[%emt 0:00:00]} Bf4 {[%emt 0:00:00]} 0-1

[Event "25th Zadar Open 2018"]
[Site "Zadar"]
[Date "2018.12.21"]
[Round "8.26"]
[White "Pallitsch, Clemens"]
[Black "Mohite, Ranveer"]
[Result "1/2-1/2"]
[ECO "D84"]
[WhiteElo "2176"]
[BlackElo "2236"]
[Annotator "ChessBase"]
[PlyCount "134"]
[EventDate "2018.12.15"]
[EventType "swiss"]
[EventCountry "CRO"]
[SourceTitle "playchess.com"]
[Source "ChessBase"]
[SourceQuality "1"]
[TimeControl "40/5400+30:1800+30"]

1. d4 {[%emt 0:00:30]} Nf6 {[%emt 0:00:30]} 2. c4 {[%emt 0:00:30]} g6 {[%emt 0:00:30]} 3. Nc3 {[%emt 0:00:30]} d5 {[%emt 0:00:30]} 4. Bf4 {[%emt 0:00:30]} Bg7 {[%emt 0:00:00]} 5. e3 {[%emt 0:00:00]} O-O {[%emt 0:00:00]} 6. cxd5 {[%emt 0:00:00]} Nxd5 {[%emt 0:00:30]} 7. Nxd5 {[%emt 0:00:30]} Qxd5 {[%emt 0:00:00]} 8. Bxc7 {[%emt 0:00:30]} Na6 {[%emt 0:00:00]} 9. Bxa6 {[%emt 0:00:30]} Qxg2 {[%emt 0:01:30]} 10. Qf3 {[%emt 0:00:00]} Qxf3 {[%emt 0:00:30]} 11. Nxf3 {[%emt 0:00:00]} bxa6 {[%emt 0:00:00]} 12. Rc1 {[%emt 0:00:30]} f6 {[%emt 0:00:00]} 13. Rg1 {[%emt 0:00:30]} Bd7 {[%emt 0:06:30]} 14. Nd2 {[%emt 0:08:30]} Rac8 {[%emt 0:08:30]} 15. f3 {[%emt 0:04:30]} e5 {[%emt 0:25:30]} 16. d5 {[%emt 0:04:30]} f5 {[%emt 0:00:00]} 17. b3 {[%emt 0:02:30]} e4 {[%emt 0:12:00]} 18. f4 {[%emt 0:00:30]} Bb2 {[%emt 0:16:30]} 19. Rc2 {[%emt 0:01:30]} Ba3 {[%emt 0:00:00]} 20. Kf2 {[%emt 0:27:30]} Bb5 {[%emt 0:08:27]} 21. Nc4 {[%emt 0:15:30]} Rxc7 {[%emt 0:10:33]} 22. Nxa3 {[%emt 0:00:30]} Rxc2+ {[%emt 0:00:09]} 23. Nxc2 {[%emt 0:00:30]} Kf7 {[%emt 0:04:55]} 24. Rd1 {[%emt 0:03:30]} Rc8 {[%emt 0:01:00]} 25. Rd2 {[%emt 0:00:30]} Ke7 {[%emt 0:00:26]} 26. Nd4 {[%emt 0:13:19]} Rc1 {[%emt 0:02:39]} 27. Rc2 {[%emt 0:01:37]} Rxc2+ {[%emt 0:01:38]} 28. Nxc2 {[%emt 0:00:02]} Kd6 {[%emt 0:00:00]} 29. Ke1 {[%emt 0:00:34]} Kxd5 {[%emt 0:00:53]} 30. Kd2 {[%emt 0:00:14]} a5 {[%emt 0:00:29]} 31. Kc3 {[%emt 0:00:27]} h6 {[%emt 0:00:24]} 32. h4 {[%emt 0:00:10]} Be8 {[%emt 0:00:29]} 33. Nd4 {[%emt 0:01:37]} Bd7 {[%emt 0:00:16]} 34. Nc2 {[%emt 0:01:37]} Bc6 {[%emt 0:00:54]} 35. Na3 {[%emt 0:00:27]} Be8 {[%emt 0:00:38]} 36. Nc4 {[%emt 0:00:24]} a4 {[%emt 0:00:09]} 37. b4 {[%emt 0:00:54]} Bb5 {[%emt 0:00:34]} 38. Na5 {[%emt 0:04:27]} Ba6 {[%emt 0:00:07]} 39. a3 {[%emt 0:01:12]} Bb5 {[%emt 0:01:13]} 40. Nb7 {[%emt 0:00:00]} Bc6 {[%emt 0:00:00]} 41. Na5 {[%emt 0:02:59]} Be8 {[%emt 0:04:37]} 42. Nb7 {[%emt 0:04:30]} Bb5 {[%emt 0:01:30]} 43. Na5 {[%emt 0:03:30]} Ba6 {[%emt 0:07:18]} 44. Kd2 {[%emt 0:00:30]} Bf1 {[%emt 0:03:59]} 45. Ke1 {[%emt 0:00:30]} Bb5 {[%emt 0:00:50]} 46. Kf2 {[%emt 0:00:30]} Ke6 {[%emt 0:00:45]} 47. Kg3 {[%emt 0:00:30]} Kf6 {[%emt 0:00:59]} 48. Kf2 {[%emt 0:02:30]} Bd7 {[%emt 0:02:10]} 49. Kg3 {[%emt 0:02:30]} Be6 {[%emt 0:02:45]} 50. Nc6 {[%emt 0:01:30]} a6 {[%emt 0:00:10]} 51. Nd4 {[%emt 0:02:30]} Bc4 {[%emt 0:02:30]} 52. Kf2 {[%emt 0:00:30]} Ke7 {[%emt 0:01:23]} 53. Nc6+ {[%emt 0:03:37]} Kf6 {[%emt 0:00:05]} 54. Nd4 {[%emt 0:00:07]} Bb5 {[%emt 0:00:07]} 55. Ke1 {[%emt 0:03:21]} Ke7 {[%emt 0:00:29]} 56. Kd2 {[%emt 0:00:43]} Kd6 {[%emt 0:00:31]} 57. Kc2 {[%emt 0:03:08]} Kd5 {[%emt 0:00:44]} 58. Kc3 {[%emt 0:00:14]} Bd3 {[%emt 0:04:18]} 59. h5 {[%emt 0:00:41]} gxh5 {[%emt 0:00:24]} 60. Nxf5 {[%emt 0:00:11]} Be2 {[%emt 0:00:44]} 61. Nh4 {[%emt 0:01:52]} Bf3 {[%emt 0:00:21]} 62. Ng6 {[%emt 0:00:36]} Bg4 {[%emt 0:01:54]} 63. Nh4 {[%emt 0:00:22]} Be6 {[%emt 0:00:47]} 64. Ng6 {[%emt 0:00:25]} Bh3 {[%emt 0:01:33]} 65. Nh4 {[%emt 0:00:14]} Bg4 {[%emt 0:01:11]} 66. Ng6 {[%emt 0:00:15]} Bh3 {[%emt 0:00:27]} 67. Nh4 {[%emt 0:00:17]} Bg4 {[%emt 0:01:13]} 1/2-1/2

[Event "25th Zadar Open 2018"]
[Site "Zadar"]
[Date "2018.12.21"]
[Round "8.27"]
[White "Sapale Saloni"]
[Black "Bilobrk, Franjo"]
[Result "0-1"]
[ECO "B90"]
[WhiteElo "2187"]
[BlackElo "2364"]
[Annotator "NA"]
[PlyCount "90"]
[EventDate "2018.12.15"]
[EventType "swiss"]
[EventCountry "CRO"]
[SourceTitle "playchess.com"]
[Source "ChessBase"]
[SourceQuality "1"]
[TimeControl "40/5400+30:1800+30"]

1. e4 {[%emt 0:01:30]} c5 {[%emt 0:00:30]} 2. Nf3 {[%emt 0:00:30]} d6 {[%emt 0:00:30]} 3. d4 {[%emt 0:00:30]} cxd4 {[%emt 0:00:30]} 4. Nxd4 {[%emt 0:00:30]} Nf6 {[%emt 0:00:00]} 5. Nc3 {[%emt 0:00:00]} a6 {[%emt 0:00:00]} 6. Be3 {[%emt 0:00:00]} e5 {[%emt 0:00:00]} 7. Nb3 {[%emt 0:00:00]} Be6 {[%emt 0:00:00]} 8. f3 {[%emt 0:00:00]} h5 {[%emt 0:00:30]} 9. Qd2 {[%emt 0:00:30]} Nbd7 {[%emt 0:00:30]} 10. Nd5 {[%emt 0:00:00] B90: Sicilian Najdorf: Unusual White 6th moves, 6 Be3 Ng4 and 6 Be3 e5} Bxd5 {[%emt 0:00:00]} 11. exd5 {[%emt 0:01:00]} g6 {[%emt 0:00:00]} 12. Be2 {[%emt 0:00:00]} Bg7 {[%emt 0:01:30]} 13. O-O {[%emt 0:00:00]} (13. O-O-O O-O 14. g4 a5 15. a4 Nb6 16. gxh5 Nxh5 17. Bb5 Nf6 {0-1 (71) Leko,P (2690)-Vachier Lagrave,M (2780) Batumi 2018}) 13... O-O {[%emt 0:00:30]} 14. Na5 {[%emt 0:00:30]} Qc7 {[%emt 0:00:30]} 15. c4 {[%emt 0:00:30]} e4 {[%emt 0:00:30]} 16. f4 {[%emt 0:00:30]} Ng4 {[%emt 0:03:30]} 17. Bxg4 {[%emt 0:00:30]} hxg4 {[%emt 0:00:30] [#]} 18. Rac1 $146 {[%emt 0:00:30]} Nc5 {[%emt 0:08:30]} 19. b4 {[%emt 0:10:30]} Nd3 {[%emt 0:01:30]} 20. Rc2 {[%emt 0:00:00]} b6 {[%emt 0:03:30]} 21. Nc6 {[%emt 0:13:00]} f5 {[%emt 0:00:30]} 22. c5 {[%emt 0:20:30]} bxc5 {[%emt 0:07:30]} 23. bxc5 {[%emt 0:00:30]} Rf7 {[%emt 0:05:30]} 24. Nb4 {[%emt 0:20:30]} Nxc5 {[%emt 0:03:30]} 25. Rfc1 {[%emt 0:00:00]} Qb6 {[%emt 0:08:30]} 26. Nc6 {[%emt 0:02:00]} Re8 {[%emt 0:08:30]} 27. Qf2 {[%emt 0:02:30]} Bf8 {[%emt 0:01:30]} 28. Bxc5 {[%emt 0:01:30]} dxc5 {[%emt 0:00:00]} 29. Ne5 {[%emt 0:00:00]} Bg7 {[%emt 0:01:00]} 30. Rxc5 {[%emt 0:04:00]} Rb7 {[%emt 0:08:30]} 31. Rc8 {[%emt 0:02:30]} Rxc8 {[%emt 0:01:30]} 32. Rxc8+ {[%emt 0:00:30]} Kh7 {[%emt 0:00:30]} 33. Qxb6 {[%emt 0:00:30]} Rxb6 {[%emt 0:00:30]} 34. Rc6 {[%emt 0:02:19]} Rb5 {[%emt 0:06:30]} 35. Rd6 $2 {[%emt 0:08:08]} (35. Nxg6 $11 {and White is okay.} Rxd5 36. Rxa6) 35... g5 {[%emt 0:00:30]} 36. g3 $19 {[%emt 0:01:06]} (36. Ng6 $142 Rb2 37. Kf1) 36... Bxe5 {[%emt 0:10:30]} 37. fxe5 {[%emt 0:00:08]} f4 {[%emt 0:00:30]} 38. gxf4 {[%emt 0:02:34]} gxf4 {[%emt 0:00:00]} 39. Rf6 {[%emt 0:01:33]} Rb1+ {[%emt 0:01:00]} 40. Kg2 {[%emt 0:00:00]} Rb2+ {[%emt 0:00:00]} 41. Kg1 {[%emt 0:10:12]} f3 {[%emt 0:00:00]} 42. Rc6 {[%emt 0:00:30]} e3 {[%emt 0:01:30]} 43. Rc1 {[%emt 0:00:00]} Rg2+ {[%emt 0:03:30]} 44. Kh1 {[%emt 0:03:00]} e2 {[%emt 0:00:30]} 45. d6 {[%emt 0:02:30]} f2 {[%emt 0:00:30]} 0-1